[Event "Israeli Championship 2022"]
[Site "Yosiah Arad"]
[Date "2022.12.07"]
[Round "3.3"]
[White "Sokolovsky, Yahli"]
[Black "Boruchovsky, Avital"]
[Result "0-1"]
[ECO "C07"]
[WhiteElo "2414"]
[BlackElo "2552"]
[Annotator "TA"]
[PlyCount "96"]
[EventDate "2022.12.05"]
[EventType "swiss"]
[EventCountry "ISR"]
[SourceTitle "playchess.com"]
[Source "ChessBase"]
[SourceQuality "1"]
[TimeControl "40/5400+30:1800+30"]

{[%evp 11,96,0,0,0,0,0,0,0,0,0,9,7,20,-31,-21,-39,-37,-21,-15,-18,0,0,0,0,0,0,12,9,13,0,0,-14,0,0,30,-35,-23,-30,-29,-49,-52,-59,-66,-188,-166,-207,-194,-256,-267,-235,-164,-222,-204,-418,-294,-290,-293,-289,-281,-258,-172,-172,-172,-1027,-1037,-1018,-1003,-877,-862,-823,-809,-616,-609,-29964,-29965,-29966,-29967,-29966,-29967,-29968,-29969,-29968,-29969,-29979,-29980,-29979,-29976]} 1. e4 {[%emt 0:00:03]} e6 {[%emt 0:00:07]} 2. d4 {[%emt 0:00:03]} d5 {[%emt 0:00:04]} 3. Nd2 {[%emt 0:00:07]} c5 {[%emt 0:00:08]} 4. Ngf3 {[%emt 0:00:26]} cxd4 {[%emt 0:00:07]} 5. Nxd4 {[%emt 0:00:30]} Nf6 {[%emt 0:00:08]} 6. exd5 {[%emt 0:04:04]} Nxd5 {[%emt 0:00:17] is now debated instead of 6...Qxd5.} 7. c3 {[%emt 0:13:51] C07: French Tarrasch: 3...c5, 4 Ngf3 and 4 exd5 Qxd5.} Bc5 $5 {[%emt 0:00:25][%mdl 4] A promising side line.} 8. Ne4 {[%emt 0:06:45]} Bxd4 {[%emt 0:00:08]} 9. Qxd4 {[%emt 0:01:29] The position is equal.} O-O {[%emt 0:00:07]} 10. Be2 {[%emt 0:11:08] [#]} f5 $146 {[%emt 0:01:20] White must now prevent ...Nc6.} ({Predecessor:} 10... Nc6 11. Qc5 f5 12. Nd6 Qe7 13. Be3 f4 14. Bd2 Rd8 15. Ne4 Qe8 16. f3 b6 {½-½ (51) Nisipeanu,L (2667)-Bluebaum,M (2618) Magdeburg 2019}) 11. Ng5 {[%emt 0:03:47]} Nc6 {[%emt 0:04:48]} 12. Qh4 {[%emt 0:00:36]} ({White should try} 12. Qc5 $11) 12... h6 $15 {[%emt 0:00:15]} 13. Nf3 {[%emt 0:00:20][%cal Bg5f3,Bf3h4,Bh4g2,Bg2e3][%mdl 32]} Qxh4 {[%emt 0:18:41]} 14. Nxh4 {[%emt 0:00:05]} e5 {[%emt 0:00:05][%cal Be6e5,Be5e4][%mdl 32] Inhibits f4.} 15. f4 {[%emt 0:12:58] Against g5} e4 {[%emt 0:08:36]} 16. g3 {[%emt 0:03:48]} Be6 {[%emt 0:00:51]} 17. Kf2 {[%emt 0:01:50]} a5 {[%emt 0:09:09]} 18. a4 {[%emt 0:07:43]} Nce7 {[%emt 0:07:09]} 19. Ng2 {[%emt 0:02:01]} Rfd8 {[%emt 0:06:32]} 20. Ne3 {[%emt 0:02:32]} Nb6 {[%emt 0:00:08]} 21. Bb5 {[%emt 0:10:22]} Rac8 {[%emt 0:41:55][%cal Ba8c8,Bc8c7,Bc7d7][%mdl 32]} 22. Rd1 {[%emt 0:03:06]} Bd7 {[%emt 0:00:00]} 23. Rd6 {[%emt 0:10:55]} ({Better is} 23. Be2 $11) 23... Bxb5 {[%emt 0:00:00]} 24. Rxb6 {[%emt 0:00:05]} (24. Rxd8+ {simplifies} Rxd8 25. axb5 a4 26. Ke2) 24... Bc6 {[%emt 0:00:00]} 25. Ke2 {[%emt 0:01:18]} Rc7 {[%emt 0:00:00]} 26. Bd2 {[%emt 0:01:40]} Rd3 {[%emt 0:00:00]} 27. Rb3 {[%emt 0:00:01] White does not recover from this.} (27. Nc4 $15) 27... Rcd7 $19 {[%emt 0:00:00]} 28. Be1 {[%emt 0:00:25]} g5 {[%emt 0:00:00]} 29. Rba3 {[%emt 0:01:49] [#]} (29. fxg5 $142 hxg5 30. Rba3) 29... gxf4 $1 {[%emt 0:00:00]} 30. gxf4 {[%emt 0:00:04]} Nd5 {[%emt 0:00:00] Against c4} 31. Nxd5 {[%emt 0:01:11]} (31. Ng2 {was worth a try.}) 31... Bxd5 {[%emt 0:00:00]} ({And not} 31... R7xd5 32. c4 R5d4 33. Bxa5 $11) 32. Rd1 $2 {[%emt 0:00:57]} (32. c4 Bxc4 33. Kf2) 32... Bc4 {[%emt 0:00:00] ( -> ...Rd2+)} 33. Rxd3 {[%emt 0:00:03]} Rxd3 {[%emt 0:00:00][%mdl 4096] Endgame KRB-KRB} 34. b3 {[%emt 0:00:44]} Rxc3+ {[%emt 0:00:00]} 35. Kd2 {[%emt 0:00:05]} Rxb3 {[%emt 0:00:00]} 36. Rxb3 {[%emt 0:00:06]} Bxb3 {[%emt 0:00:00] KB-KB} 37. Ke3 $2 {[%emt 0:00:58]} (37. Bh4) 37... b6 {[%emt 0:00:05]} ({Worse is} 37... Bxa4 38. Bxa5 Kf7 39. Bc7 $17) 38. Bh4 {[%emt 0:00:04]} Bxa4 {[%emt 0:00:08]} 39. Bd8 {[%emt 0:00:03]} Bb5 {[%emt 0:03:27]} 40. Bxb6 {[%emt 0:00:04] [#]} a4 $1 {[%emt 0:00:02]} 41. Bc5 {[%emt 0:30:06]} Kf7 {[%emt 0:30:21]} 42. Kf2 {[%emt 0:00:00]} Ke6 {[%emt 0:00:00] Black mates.} 43. Bf8 {[%emt 0:00:00]} h5 {[%emt 0:00:00]} 44. Ke3 {[%emt 0:00:00]} Kd5 {[%emt 0:00:00]} 45. Kd2 {[%emt 0:00:00]} Kc4 {[%emt 0:00:00]} 46. Be7 {[%emt 0:00:00]} Kb3 {[%emt 0:00:00]} 47. Bd6 {[%emt 0:00:00]} a3 {[%emt 0:00:00]} 48. Be7 {[%emt 0:00:00]} Kb2 {[%emt 0:00:00] Weighted Error Value: White=0.52/Black=0.13 (very precise)} 0-1

[Event "Israeli Championship 2022"]
[Site "Yosiah Arad"]
[Date "2022.12.07"]
[Round "3.4"]
[White "Yaniv, Yuval"]
[Black "Bronstein, Or"]
[Result "1/2-1/2"]
[ECO "B50"]
[WhiteElo "2343"]
[BlackElo "2442"]
[Annotator "TA"]
[PlyCount "83"]
[EventDate "2022.12.05"]
[EventType "swiss"]
[EventCountry "ISR"]
[SourceTitle "playchess.com"]
[Source "ChessBase"]
[SourceQuality "1"]
[TimeControl "40/5400+30:1800+30"]

{[%evp 9,83,19,14,15,44,29,47,35,12,16,22,19,13,22,28,31,26,33,29,35,60,0,0,-23,-31,-54,-43,-51,-22,-33,-12,-46,-54,-83,-94,-112,-93,-96,-68,-168,-118,-240,-223,-231,-222,-216,-197,-209,-147,-245,-250,-392,-366,-389,-370,-338,-158,-153,0,-220,-43,-40,0,0,0,0,30,12,33,35,48,24,44,0,0,0]} 1. e4 {[%emt 0:00:16]} c5 {[%emt 0:00:24]} 2. Nf3 {[%emt 0:00:21]} d6 {[%emt 0:00:07]} 3. Nc3 {[%emt 0:00:23]} a6 {[%emt 0:05:22]} 4. d4 {[%emt 0:00:26]} cxd4 {[%emt 0:01:52]} 5. Qxd4 {[%emt 0:00:15]} Nc6 {[%emt 0:01:32]} 6. Qd3 {[%emt 0:00:25] B50: Sicilian: 2...d6, Miscellaneous.} g6 {[%emt 0:01:43]} 7. Be3 {[%emt 0:00:26] [#] Strongly threatening Nd5.} Qa5 {[%emt 0:15:07]} 8. Be2 {[%emt 0:01:27] White is slightly better.} Bg7 {[%emt 0:01:07]} 9. O-O {[%emt 0:00:33] [#]} Bxc3 $146 {[%emt 0:10:38]} ({Predecessor:} 9... Nf6 10. Nd4 O-O 11. f4 Bd7 12. a3 Rac8 13. Rad1 Nxd4 14. Bxd4 Bc6 15. Bf3 Rfd8 {0-1 (24) Bordelet,L (1782)-Inkiov,V (2465) Fouesnant 2009}) 10. bxc3 {[%emt 0:02:04]} (10. Qxc3 {simplifies} Qxc3 11. bxc3 Nf6 12. Nd2) 10... Nf6 {[%emt 0:00:02]} 11. Bh6 {[%emt 0:12:28]} Ng4 {[%emt 0:05:06]} 12. Bg7 {[%emt 0:01:44]} Rg8 {[%emt 0:00:07]} 13. Bd4 {[%emt 0:00:07]} e5 {[%emt 0:18:15]} 14. Be3 {[%emt 0:00:44]} Nxe3 {[%emt 0:00:02]} 15. fxe3 {[%emt 0:02:50]} (15. Qxe3 $14 Qc7 16. Rab1) 15... Qc5 {[%emt 0:07:08]} 16. Rad1 {[%emt 0:08:43]} (16. Rf2 $5 {[%cal Rf3g5]}) 16... Ke7 {[%emt 0:03:17]} 17. Kh1 {[%emt 0:05:25]} h6 {[%emt 0:05:31]} 18. Nd2 {[%emt 0:03:57]} Rd8 {[%emt 0:02:05]} 19. Nb3 {[%emt 0:01:24]} Qa3 {[%emt 0:00:24]} 20. Qd2 {[%emt 0:18:03]} Be6 {[%emt 0:00:34]} 21. Bd3 {[%emt 0:00:15]} Rac8 {[%emt 0:06:29]} (21... Qxa2 $2 22. Ra1 Bxb3 23. Rxa2 Bxa2 24. c4 $18 (24. Qf2 Be6 $11)) 22. Rb1 {[%emt 0:06:17][%cal Ob3d4]} Rc7 {[%emt 0:00:56]} (22... Qxa2 $2 23. Ra1 (23. Qf2 Kf8 $11) 23... Bxb3 24. Rxa2 Bxa2 25. c4 $18 (25. Qf2 Be6 $14)) 23. c4 {[%emt 0:02:58]} Kd7 {[%emt 0:02:42]} (23... Qxa2 $2 24. Ra1 $18 (24. Qf2 Nb4 $15) (24. Qf2 Nb4 $11)) 24. c5 {[%emt 0:05:50]} (24. Qc3 $15) 24... Ke8 {[%emt 0:01:09]} (24... Qxa2 $2 25. Ra1 Bxb3 26. Rxa2 Bxa2 27. c4 $18) (24... dxc5 $19 {White must now prevent ...Kc8.} 25. Bc4+ Ke8) 25. Qe2 {[%emt 0:02:26]} (25. Qc3 $17) 25... dxc5 $19 {[%emt 0:00:27]} (25... Qxa2 26. Ra1 Bxb3 27. Rxa2 Bxa2 28. cxd6 Rxd6 29. Qe1 $11) 26. Bc4 {[%emt 0:00:07]} Bxc4 {[%emt 0:00:39]} (26... Qxa2 $2 27. Bxe6 fxe6 28. Qc4 $18) 27. Qxc4 {[%emt 0:00:02]} Qb4 {[%emt 0:02:52]} (27... Qxa2 $2 28. Ra1 Qb2 29. Rfb1 $18) 28. Qe2 {[%emt 0:05:15]} Qc3 {[%emt 0:00:01]} (28... Qxe4 29. Nxc5 Nd4 30. Qf2 (30. Nxe4 Nxe2 31. c4 Ke7 $17) 30... Qxc2 31. exd4 Qxf2 32. Rxf2 $11) 29. Qf2 {[%emt 0:00:14]} (29. h3 $17 {was worth a try.}) 29... Rd6 {[%emt 0:03:28]} 30. Rbd1 {[%emt 0:00:46]} (30. a3 $142) 30... Rxd1 {[%emt 0:00:01]} 31. Rxd1 {[%emt 0:00:02]} c4 {[%emt 0:01:57]} 32. Nc1 {[%emt 0:03:37]} Qa3 {[%emt 0:02:05]} (32... Rd7 $19 33. Rxd7 Kxd7 34. Qxf7+ Kd6) 33. Ne2 $17 {[%emt 0:00:36]} Qb2 $2 {[%emt 0:02:16]} ({Don't play} 33... Qxa2 34. Nc3 Rd7 35. Rxd7 Qa1+ 36. Rd1 Qxc3 37. Rb1 $14) (33... Nb8 $17 {Threatens to win with ...Re7.} 34. Rf1 (34. Qf6 Nd7 $17) 34... Nc6) 34. Ng3 $2 {[%emt 0:02:33]} (34. Qf6 $11 {and White has nothing to worry.}) 34... Rd7 $2 {[%emt 0:00:42]} (34... Qxa2 $19 {...c3 is the strong threat.} 35. Qf6 Rd7) 35. Rxd7 $15 {[%emt 0:00:28][%csl Gd7][%cal Rf2f7] [#]} Qc1+ {[%emt 0:00:01]} 36. Nf1 {[%emt 0:00:22][%csl Gd7][%cal Rf2f7]} Kxd7 {[%emt 0:00:02]} 37. Qxf7+ $11 {[%emt 0:00:09] KQN-KQN} Kc8 {[%emt 0:00:54]} (37... Kd6 $5 {[%cal Rc1c2]} 38. Qxc4 Qd1 $14) 38. Qxc4 {[%emt 0:02:38]} Kb8 {[%emt 0:00:01][%cal Oc6b4]} 39. Kg1 {[%emt 0:00:39]} a5 {[%emt 0:01:01]} 40. h4 {[%emt 0:03:07]} Ka7 {[%emt 0:01:41]} 41. a4 {[%emt 0:11:03]} Qe1 {[%emt 0:01:24]} 42. Qc5+ {[%emt 0:02:56] White happily takes the draw.   Weighted Error Value: White=0.34/Black=0.27 (precise)} 1/2-1/2

[Event "Israeli Championship 2022"]
[Site "Yosiah Arad"]
[Date "2022.12.07"]
[Round "3.5"]
[White "Nabaty, Tamir"]
[Black "Zemach, Nadav"]
[Result "1-0"]
[ECO "C68"]
[WhiteElo "2629"]
[BlackElo "2402"]
[Annotator "TA"]
[PlyCount "87"]
[EventDate "2022.12.05"]
[EventType "swiss"]
[EventCountry "ISR"]
[SourceTitle "playchess.com"]
[Source "ChessBase"]
[SourceQuality "1"]
[TimeControl "40/5400+30:1800+30"]

{[%evp 19,87,0,0,0,0,0,0,0,0,0,0,-26,0,0,0,0,19,10,11,15,16,13,6,23,12,0,16,16,32,21,45,32,41,49,39,16,28,14,21,0,0,0,0,0,0,0,0,0,0,0,0,0,0,0,0,0,0,0,1720,681,12839,12839,12843,12843,12844,12844,12845,12845,12846,12846]} 1. e4 {[%emt 0:00:02]} e5 {[%emt 0:00:14]} 2. Nf3 {[%emt 0:00:10]} Nc6 {[%emt 0:00:09]} 3. Bb5 {[%emt 0:00:06]} a6 {[%emt 0:00:14]} 4. Bxc6 {[%emt 0:00:06]} dxc6 {[%emt 0:00:06]} 5. O-O {[%emt 0:00:09]} Bg4 {[%emt 0:05:48]} 6. h3 {[%emt 0:00:09]} h5 {[%emt 0:00:05]} 7. d3 {[%emt 0:00:08][%cal Bd2d3,Bd3d4,Bd4e5][%mdl 32]} Qf6 {[%emt 0:00:31]} 8. Nbd2 {[%emt 0:00:07]} Ne7 {[%emt 0:00:48][%cal Bg8e7,Be7g6,Bg6f4][%mdl 32]} 9. Re1 {[%emt 0:01:40]} Ng6 {[%emt 0:04:30]} 10. d4 {[%emt 0:00:10]} Nf4 {[%emt 0:00:28][%cal Oe5d4] Threatens to win with ...exd4!} 11. dxe5 {[%emt 0:15:51] C68: Ruy Lopez: Exchange Variation, sidelines.} Qg6 {[%emt 0:00:10][%cal Oh5h4] [#] Hoping for ...h4!} (11... Qe6 {seems wilder.} 12. Nb3 Rd8 13. Bd2 Bxh3 14. Ng5 Qg6) 12. Nh4 $1 {[%emt 0:01:37]} Bxd1 {[%emt 0:00:07]} 13. Nxg6 {[%emt 0:00:03] The position is equal.} Nxg6 {[%emt 0:00:04]} 14. Rxd1 {[%emt 0:00:06]} O-O-O {[%emt 0:00:09][%cal Of8c5]} 15. Re1 {[%emt 0:12:03] [#]} Bb4 $146 {[%emt 0:05:01][%mdl 1024] Black has compensation.} (15... Nxe5 $5 16. a3 Bd6 $11) ({Predecessor:} 15... Nxe5 16. a3 Bc5 17. Nf1 Bd4 18. Ne3 g6 19. Kf1 Rhe8 20. Rb1 b5 21. Rd1 Bxe3 22. Rxd8+ Rxd8 23. Bxe3 Nc4 24. Ke2 Re8 25. Kd3 Rd8+ 26. Ke2 {½-½ (26) Onischuk,A (2664)-Becerra Rivero,J (2575) Tulsa 2008}) 16. c3 {[%emt 0:01:40]} Bc5 {[%emt 0:01:16]} 17. Nf3 {[%emt 0:11:00][%cal Oe5e6]} Rde8 {[%emt 0:01:50] Inhibits e6.} 18. b4 {[%emt 0:05:53]} Bf8 {[%emt 0:12:09]} 19. Be3 {[%emt 0:01:10]} Nxe5 {[%emt 0:00:20]} 20. Nxe5 {[%emt 0:00:10]} Rxe5 {[%emt 0:00:02]} 21. Bd4 {[%emt 0:00:02]} Re8 {[%emt 0:04:40]} 22. f4 {[%emt 0:01:14]} f6 {[%emt 0:02:20]} 23. Kf2 {[%emt 0:01:14]} Bd6 {[%emt 0:03:47]} 24. Kf3 {[%emt 0:02:16]} Re6 {[%emt 0:02:27]} 25. Re2 {[%emt 0:05:12]} Rhe8 {[%emt 0:02:54]} 26. Rae1 {[%emt 0:04:13]} b6 {[%emt 0:03:08]} 27. e5 {[%emt 0:05:17]} fxe5 {[%emt 0:06:37]} 28. Bxe5 {[%emt 0:00:07]} g6 {[%emt 0:07:27]} 29. Bxd6 {[%emt 0:09:35]} Rxe2 {[%emt 0:00:23]} 30. Rxe2 {[%emt 0:00:01]} Rxe2 {[%emt 0:00:08]} 31. Kxe2 {[%emt 0:00:02]} cxd6 $11 {[%emt 0:00:07][%mdl 4096] Endgame KP-KP} 32. Kf3 {[%emt 0:00:27]} Kd7 {[%emt 0:20:13]} 33. g4 {[%emt 0:00:56] Black must now prevent f5.} h4 $1 {[%emt 0:07:21]} 34. Ke4 {[%emt 0:16:55] f5 is the strong threat.} Ke6 {[%emt 0:01:42]} 35. c4 {[%emt 0:00:01] And now a4 would win.} b5 {[%emt 0:01:06]} 36. Kd4 {[%emt 0:00:05]} Kf6 {[%emt 0:00:33]} 37. Kc3 {[%emt 0:00:56]} (37. c5 $5 d5 $8 38. Kc3 $11) 37... Ke6 {[%emt 0:06:43]} 38. a3 {[%emt 0:00:26]} c5 $2 {[%emt 0:01:23][%mdl 8192]} (38... d5 $11 39. cxd5+ Kxd5) 39. a4 {[%emt 0:06:55]} (39. Kd3 $142 Kf6 40. a4 bxc4+ 41. Kxc4 cxb4 42. Kxb4) 39... bxa4 {[%emt 0:02:12] [#]} 40. bxc5 {[%emt 0:01:01]} d5 {[%emt 0:00:29]} 41. f5+ {[%emt 0:30:29]} gxf5 {[%emt 0:02:40]} 42. gxf5+ {[%emt 0:00:00][%cal Bg4f5,Bf5f6][%mdl 32]} Ke5 {[%emt 0:00:04]} 43. cxd5 {[%emt 0:00:00]} Kxd5 {[%emt 0:00:07]} 44. f6 {[%emt 0:02:46] Weighted Error Value: White=0.20 (precise) /Black=0.06 (flawless)} 1-0

[Event "Israeli Championship 2022"]
[Site "Yosiah Arad"]
[Date "2022.12.07"]
[Round "3.6"]
[White "Iliaguev, Nisim"]
[Black "Postny, Evgeny"]
[Result "0-1"]
[ECO "D02"]
[WhiteElo "2364"]
[BlackElo "2588"]
[Annotator "TA"]
[PlyCount "96"]
[EventDate "2022.12.05"]
[EventType "swiss"]
[EventCountry "ISR"]
[SourceTitle "playchess.com"]
[Source "ChessBase"]
[SourceQuality "1"]
[TimeControl "40/5400+30:1800+30"]

{[%evp 11,96,21,27,24,18,11,4,-5,16,0,7,0,0,0,2,10,0,0,17,0,0,0,0,-12,-7,-33,0,0,0,-24,13,17,20,-27,17,9,16,10,10,6,11,18,4,10,9,-29,0,3,8,-83,-89,-74,-88,-94,-93,-143,-90,-100,-93,-95,-95,-97,-88,-88,-88,-103,-103,-114,-104,-114,-107,-111,-108,-153,-150,-126,-108,-197,-163,-158,-149,-204,-203,-302,-313,-345,-262]} 1. d4 {[%emt 0:00:18]} d5 {[%emt 0:00:12]} 2. Nf3 {[%emt 0:00:21]} Nf6 {[%emt 0:00:07]} 3. Bf4 {[%emt 0:00:19]} c5 {[%emt 0:00:38]} 4. e3 {[%emt 0:00:12]} Nc6 {[%emt 0:00:08]} 5. c3 {[%emt 0:04:06]} Bg4 {[%emt 0:01:55]} 6. Nbd2 {[%emt 0:02:58]} e6 {[%emt 0:04:29]} 7. Qb3 {[%emt 0:05:21] D02: 1 d4 d5 2 Nf3 sidelines, including 2...Nf6 3 g3 and 2...Nf6 3 Bf4.} Qc8 {[%emt 0:02:10]} 8. Bb5 {[%emt 0:07:41]} Nd7 {[%emt 0:05:39]} 9. O-O {[%emt 0:02:11] The position is equal.} c4 {[%emt 0:11:30] [#]} 10. Qa4 $146 {[%emt 0:01:44]} ({Predecessor:} 10. Qd1 a6 11. Ba4 b5 12. Bc2 Be7 13. h3 Bh5 14. e4 dxe4 15. Nxe4 O-O 16. Ng3 Bg6 17. Bxg6 hxg6 18. Ne4 Nf6 {0-1 (18) Hancock,S (1614)-Ward,D (1739) FICGS email 2012}) 10... Be7 {[%emt 0:09:13]} 11. Bxc6 {[%emt 0:07:48]} bxc6 {[%emt 0:04:10]} 12. b3 {[%emt 0:04:26]} Bxf3 {[%emt 0:04:27]} (12... Nb6 $5 13. Qa5 $8 O-O $11) 13. Nxf3 {[%emt 0:01:52]} Nb6 {[%emt 0:00:16]} 14. Qa5 {[%emt 0:00:12]} O-O {[%emt 0:00:19]} 15. Nd2 {[%emt 0:00:50]} c5 {[%emt 0:01:43]} 16. Rfc1 {[%emt 0:04:53]} Qc6 {[%emt 0:05:45]} 17. h3 {[%emt 0:12:31]} Rfc8 {[%emt 0:03:30]} 18. Rab1 {[%emt 0:05:31]} (18. Qa6 $5 {[%cal Rb3c4]}) 18... h6 {[%emt 0:09:57]} 19. Rc2 {[%emt 0:09:38]} Qd7 {[%emt 0:16:07]} 20. Qa6 {[%emt 0:08:50][%cal Rb3c4]} cxb3 {[%emt 0:06:31]} 21. axb3 {[%emt 0:00:55]} Rc6 {[%emt 0:00:35]} 22. Qa2 {[%emt 0:03:35]} (22. Nf3 $142) 22... Rac8 {[%emt 0:02:07]} 23. Rbc1 {[%emt 0:02:27]} Qb7 {[%emt 0:01:09]} 24. c4 {[%emt 0:02:29]} Bf8 {[%emt 0:05:54]} 25. Nf3 {[%emt 0:02:53]} dxc4 {[%emt 0:00:36]} 26. bxc4 {[%emt 0:00:37]} Nd7 {[%emt 0:00:18]} 27. Ra1 {[%emt 0:01:46]} Ra8 {[%emt 0:00:40]} 28. Nd2 {[%emt 0:04:32]} Rb6 {[%emt 0:00:43]} 29. Qa5 {[%emt 0:02:10]} Be7 {[%emt 0:00:59]} 30. Rca2 {[%emt 0:01:14]} (30. Rcc1 $11 {remains equal.}) 30... cxd4 $17 {[%emt 0:00:35]} 31. exd4 {[%emt 0:00:01]} Bb4 {[%emt 0:00:05] Against c5} 32. Qa4 {[%emt 0:00:37]} Bc3 $1 {[%emt 0:00:10][%csl LRa1,LRd4] Prevents c5.} 33. c5 {[%emt 0:01:16] Against e5} ({White should try} 33. Rd1) 33... Bxa1 {[%emt 0:00:45]} (33... Rb4 $142 34. Qc2 (34. c6 Qb6 $17) 34... Bxa1) 34. cxb6 {[%emt 0:00:39]} Nxb6 {[%emt 0:00:20]} 35. Qb4 {[%emt 0:00:29]} a5 $1 {[%emt 0:00:08]} 36. Rxa5 {[%emt 0:00:31]} Rxa5 {[%emt 0:00:15]} 37. Qxa5 {[%emt 0:00:01]} Bxd4 {[%emt 0:01:05]} 38. Nf3 {[%emt 0:00:44]} Nd5 $36 {[%emt 0:01:20][%mdl 2048] Black is really pushing.} 39. Qd8+ {[%emt 0:00:41]} Kh7 {[%emt 0:00:05]} 40. Bg3 {[%emt 0:00:28]} Bf6 {[%emt 0:00:52]} 41. Qe8 {[%emt 0:30:37]} Nc3 {[%emt 0:32:56]} 42. Kh2 {[%emt 0:00:00]} Ne4 {[%emt 0:00:00]} 43. Qa4 {[%emt 0:00:00]} Qd5 {[%emt 0:00:00] Black is more active.} 44. Qa7 {[%emt 0:00:00]} (44. Qc2 $17) 44... e5 $19 {[%emt 0:00:00][%cal Be6e5,Be5e4][%mdl 32]} 45. Qe3 {[%emt 0:00:00]} g6 {[%emt 0:00:00]} 46. h4 {[%emt 0:00:00]} (46. Qe2 $17 {was worth a try.}) 46... Kg7 {[%emt 0:00:00]} 47. Kh1 {[%emt 0:00:00] [#]} (47. Ng1 $142) 47... Nxg3+ $1 {[%emt 0:00:00]} 48. fxg3 {[%emt 0:00:00]} e4 {[%emt 0:00:00] Weighted Error Value: White=0.20 (precise) /Black=0.07 (flawless)} 0-1

[Event "Israeli Championship 2022"]
[Site "Yosiah Arad"]
[Date "2022.12.07"]
[Round "3.7"]
[White "Kobo, Ori"]
[Black "Levin, Guy"]
[Result "1/2-1/2"]
[ECO "A13"]
[WhiteElo "2554"]
[BlackElo "2382"]
[Annotator "TA"]
[PlyCount "107"]
[EventDate "2022.12.05"]
[EventType "swiss"]
[EventCountry "ISR"]
[SourceTitle "playchess.com"]
[Source "ChessBase"]
[SourceQuality "1"]
[TimeControl "40/5400+30:1800+30"]

{[%evp 10,107,11,5,32,25,51,23,34,16,35,33,32,40,40,0,11,0,0,-27,-13,-19,-22,-27,-33,-20,-22,-33,-28,-21,-16,-20,-18,-20,-2,-12,0,0,0,0,0,0,0,0,0,0,0,0,0,0,0,0,0,0,0,0,0,0,0,0,0,0,0,0,0,0,0,0,0,0,0,0,0,0,0,0,0,0,0,0,0,0,0,0,0,0,0,0,0,0,0,0,0,-6,0,0,0,0,-6,-6]} 1. Nf3 {[%emt 0:00:11]} Nf6 {[%emt 0:00:20]} 2. g3 {[%emt 0:00:24]} d5 {[%emt 0:00:11]} 3. Bg2 {[%emt 0:00:04]} e6 {[%emt 0:00:06]} 4. c4 {[%emt 0:00:09]} Nbd7 {[%emt 0:00:06]} 5. O-O {[%emt 0:03:02]} dxc4 {[%emt 0:00:09]} 6. Qc2 {[%emt 0:00:15]} a6 {[%emt 0:00:34] A13: English Opening: 1...e6.} 7. a4 {[%emt 0:00:24][%cal Of1d1]} Rb8 {[%emt 0:15:10]} 8. Qxc4 {[%emt 0:00:23]} b5 {[%emt 0:00:32] White has an edge.} 9. axb5 {[%emt 0:02:41]} axb5 {[%emt 0:00:43]} 10. Qc2 {[%emt 0:00:07]} Bb7 {[%emt 0:01:43]} 11. d3 {[%emt 0:05:05] [#]} Bd6 $146 {[%emt 0:02:05]} ({Predecessor:} 11... c5 12. Bf4 Ra8 13. Nc3 Qb6 14. Rxa8+ Bxa8 15. Ra1 Bc6 16. Ne5 Nxe5 17. Bxe5 Nd7 {½-½ (41) Chigaev,M (2637)-Pridorozhni,A (2529) Sochi 2022}) 12. e4 {[%emt 0:23:32][%cal Be2e4,Be4e5,Be5f6,Bf6g7][%mdl 32]} (12. Nc3 $5 {[%cal Rc3b5]}) 12... c5 {[%emt 0:12:20]} 13. Nc3 {[%emt 0:08:22]} Qb6 {[%emt 0:01:33]} 14. Bg5 {[%emt 0:03:29]} O-O {[%emt 0:05:44]} 15. Bxf6 {[%emt 0:08:18]} Nxf6 {[%emt 0:01:46]} 16. e5 {[%emt 0:00:14]} Bxf3 {[%emt 0:00:07]} 17. exf6 {[%emt 0:00:07]} Bxg2 {[%emt 0:00:35] This pair of bishops is nice.} 18. fxg7 $1 {[%emt 0:00:15]} Rfd8 {[%emt 0:06:40]} 19. Kxg2 {[%emt 0:00:28]} Qc6+ {[%emt 0:00:20] The position is equal.} 20. Kg1 {[%emt 0:01:47]} Be5 {[%emt 0:01:08]} 21. Ne4 {[%emt 0:04:04]} c4 {[%emt 0:06:28] Inhibits d4.} 22. Rac1 {[%emt 0:04:39]} Qd5 {[%emt 0:03:54]} ({But not} 22... Kxg7 23. Qe2 $16) (22... Rd4 {looks sharper.} 23. Rfe1 Rc8 24. Qe2 Rxd3 25. Qh5 Bxg7 26. Ng5 Qd7) 23. dxc4 {[%emt 0:01:03]} Qxc4 {[%emt 0:00:07]} 24. Qxc4 {[%emt 0:02:09] Chess con chili.} bxc4 {[%emt 0:00:04]} 25. Rxc4 {[%emt 0:00:10]} Rxb2 {[%emt 0:01:37]} 26. Ng5 {[%emt 0:03:38]} h6 {[%emt 0:01:32]} 27. Nf3 {[%emt 0:00:53]} Bxg7 {[%emt 0:00:42]} 28. Rfc1 {[%emt 0:03:42]} Rdb8 {[%emt 0:02:45]} 29. Kg2 {[%emt 0:00:43]} Rb1 {[%emt 0:00:31]} 30. Rxb1 {[%emt 0:00:10]} Rxb1 $11 {[%emt 0:00:01][%mdl 4096] Endgame KRB-KRN} 31. h4 {[%emt 0:02:13]} Rb5 {[%emt 0:00:23]} 32. Ng1 {[%emt 0:03:44]} h5 {[%emt 0:01:20]} 33. Nh3 {[%emt 0:07:17]} Bh6 {[%emt 0:03:17]} 34. Rc2 {[%emt 0:00:26]} Rd5 {[%emt 0:01:17]} 35. Ng1 {[%emt 0:00:21]} Kg7 {[%emt 0:00:55]} 36. Nf3 {[%emt 0:00:20]} Kf6 {[%emt 0:00:43]} 37. Rc4 {[%emt 0:00:45]} Kg6 {[%emt 0:01:25]} 38. Nd4 {[%emt 0:02:21]} Bg7 {[%emt 0:02:54]} 39. Ne2 {[%emt 0:01:04] [#] Black must now prevent Nf4+.} Be5 {[%emt 0:00:34]} 40. Rc2 {[%emt 0:00:31]} Rb5 {[%emt 0:00:36]} 41. Ng1 {[%emt 0:32:34]} Rb2 {[%emt 0:31:46]} 42. Rc4 {[%emt 0:00:08]} Bg7 {[%emt 0:00:24]} 43. Nf3 {[%emt 0:02:18]} Bf6 {[%emt 0:00:17]} 44. Ne1 {[%emt 0:00:28]} Rd2 {[%emt 0:00:55]} 45. Nf3 {[%emt 0:02:37]} Rb2 {[%emt 0:00:13]} 46. Re4 {[%emt 0:01:22]} Kf5 {[%emt 0:00:35]} 47. Ra4 {[%emt 0:00:44]} Kg6 {[%emt 0:00:15]} 48. Ra3 {[%emt 0:00:00]} Kg7 {[%emt 0:00:00]} 49. Rd3 {[%emt 0:00:00]} Kg6 {[%emt 0:00:00]} 50. Nd2 {[%emt 0:00:00]} Rb4 {[%emt 0:00:00]} 51. Nb3 {[%emt 0:00:00]} Rc4 {[%emt 0:00:00]} 52. Rd7 {[%emt 0:00:00]} Kg7 {[%emt 0:00:00]} 53. Nd2 {[%emt 0:00:00]} Rd4 {[%emt 0:00:00]} 54. Rxd4 {[%emt 0:00:00] Weighted Error Value: White=0.04 (flawless) /Black=0.04 (flawless)} 1/2-1/2